fUST/lending_fUST_20251010
["ID","MTS","AMOUNT","RATE_DAILY","PERIOD"]
[390635695,1760109043715,-1000.0,0.00018521,2]
[390635697,1760109043724,-5206.0,0.00018535,2]
[390635699,1760109043734,-500.0,0.00018561,2]
[390635701,1760109043743,-420.0,0.00018567,2]
[390635703,1760109043752,-923.0,0.00018574,2]
[390635705,1760109043761,-152.507168,0.00018574,2]
[390635707,1760109043771,-160.0,0.00018593,3]
[390635709,1760109043781,-369.63491057,0.000186,2]
[390635711,1760109043791,-798.0,0.00018645,2]
[390635713,1760109043801,-500.0,0.0001869,2]
[390635714,1760109043810,-153.75912994,0.00018697,2]
[390635716,1760109043819,-255.51652127,0.00018699,2]
[390635718,1760109043829,-227.94410409,0.00018699,2]
[390635720,1760109043838,-285.57192612,0.000187,2]
[390635722,1760109043849,-1045.00110549,0.000187,2]
[390635724,1760109043859,-2000.0,0.000187,2]
[390635726,1760109043869,-21961.6749461,0.000187,3]
[390635728,1760109043878,-201.36920788,0.000187,2]
[390635730,1760109043887,-452.85128755,0.000187,2]
[390635732,1760109043897,-232.792572,0.000187,2]
[390635734,1760109043906,-232.792572,0.000187,2]
[390635735,1760109043916,-232.792572,0.000187,2]
[390635737,1760109043925,-232.792572,0.000187,2]
[390635739,1760109043934,-232.792572,0.000187,2]
[390635741,1760109043943,-232.792572,0.000187,2]
[390635743,1760109043953,-232.792572,0.000187,2]
[390635745,1760109043962,-232.79258,0.000187,2]
[390635747,1760109043972,-66943.60926974,0.000187,2]
[390635750,1760109043990,-703.52979223,0.000187,2]
[390635752,1760109044002,-152062.46517776,0.000187,2]
[390635754,1760109044013,-14270.83341168,0.000187,2]
[390635756,1760109044023,-15825.52995193,0.000187,2]
[390635758,1760109044034,-4237.14540017,0.000187,2]
[390635763,1760109044070,-120200.0,0.000187,2]
[390635765,1760109044081,-367.74672855,0.000187,2]
[390635769,1760109044277,-65461.67705217,0.000187,2]
[390635777,1760109044391,-700.00000025,0.000187,2]
[390635779,1760109044403,-12161.0,0.000187,2]
[390636026,1760109046570,-157003.9769626,0.000187,2]
[390639691,1760109088994,158.420466,0.00024,30]
[390642015,1760109367185,1000.0,0.00028767,120]
[390642016,1760109398675,153.018386,0.0002352,30]
[390642064,1760109627357,1201.331191,0.00013699,2]
[390642100,1760109873709,164.18360243,0.00015,8]
[390643474,1760110212565,510.0,0.00028767,120]
[390643728,1760110239978,-162.0,0.00016301,3]
[390643729,1760110239987,-313.62741394,0.00016301,2]
[390643730,1760110239997,-393.35895,0.00016528,2]
[390643731,1760110240007,-247.07721026,0.000169,2]
[390643732,1760110240016,-360.67152604,0.00016901,2]
[390643733,1760110240026,-160.0,0.00016946,2]
[390643734,1760110240036,-234.32063665,0.00017315,2]
[390643735,1760110240046,-298.03512572,0.00017315,2]
[390643736,1760110240055,-160.0,0.00017315,2]
[390643737,1760110240065,-1000.0,0.00017323,2]
[390643738,1760110240076,-407.71563813,0.00017501,2]
[390643739,1760110240086,-509.25533731,0.00017599,2]
[390643740,1760110240101,-690.74466269,0.00017599,2]
[390643741,1760110240111,-2110.67602749,0.000176,2]
[390643742,1760110240121,-1041.66666667,0.00017626,2]
[390643743,1760110240130,-160.0,0.00017795,2]
[390643744,1760110240140,-177.67,0.00017803,2]
[390643745,1760110240150,-128.24264325,0.00017808,2]
[390643746,1760110240161,-371.75735675,0.00017808,2]
[390643747,1760110240171,-300.0,0.00017809,2]
[390643748,1760110240180,-1714.44264325,0.00017813,2]
[390643750,1760110240191,-2908.93413296,0.00017813,2]
[390643753,1760110240211,-1390.0,0.00017813,2]
[390643754,1760110240223,-553.67525093,0.00017813,2]
[390643755,1760110240235,-8602.12222575,0.00017813,2]
[390643756,1760110240248,-4850.0,0.00017813,2]
[390643759,1760110240260,-27907.82467972,0.00017813,2]
[390643760,1760110240270,-544.41282907,0.00017989,2]
[390643763,1760110240281,-1227.2,0.0001799,2]
[390643764,1760110240291,-1438.29315449,0.00018,2]
[390643765,1760110240302,-1991.56682362,0.00018,2]
[390643766,1760110240312,-201.36920788,0.00018,2]
[390643767,1760110240322,-160.0,0.00018,2]
[390643768,1760110240332,-181.14051502,0.00018,2]
[390643770,1760110240342,-64643.2590279,0.00018,2]
[390643772,1760110240357,-1999.00211643,0.00018,2]
[390643774,1760110240369,-11930.33442204,0.00018,2]
[390643775,1760110240381,-7478.60849918,0.00018,2]
[390643776,1760110240391,-198.44860382,0.0001803,2]
[390643777,1760110240401,-200.0,0.000181,2]
[390643778,1760110240410,-454.75975022,0.00018101,2]
[390643779,1760110240419,-980.0,0.0001813,2]
[390643780,1760110240429,-630.0,0.0001813,2]
[390643781,1760110240439,-2159.0,0.0001813,2]
[390643783,1760110240449,-411.0,0.0001813,2]
[390643784,1760110240459,-414.167,0.0001813,2]
[390643785,1760110240469,-4404.33,0.00018156,2]
[390643786,1760110240479,-500.0,0.00018168,2]
[390643787,1760110240488,-300.0,0.00018168,2]
[390643788,1760110240498,-300.0,0.00018168,2]
[390643789,1760110240507,-300.0,0.00018168,2]
[390643790,1760110240517,-300.0,0.00018168,2]
[390643791,1760110240527,-300.0,0.00018168,2]
[390643792,1760110240536,-300.0,0.00018168,2]
[390643794,1760110240546,-300.0,0.00018168,2]
[390643796,1760110240556,-300.0,0.00018168,2]
[390643798,1760110240565,-300.0,0.00018168,2]
[390643800,1760110240575,-300.0,0.00018168,2]
[390643801,1760110240585,-300.0,0.00018168,2]
[390643803,1760110240595,-300.0,0.00018168,2]
[390643804,1760110240611,-300.0,0.00018168,2]
[390643805,1760110240621,-300.0,0.00018168,2]
[390643807,1760110240632,-300.0,0.00018168,2]
[390643809,1760110240643,-132.11440694,0.00018196,2]
[390643811,1760110240657,-4062.88559306,0.00018196,2]
[390643813,1760110240668,-1438.29315449,0.000182,2]
[390643815,1760110240679,-1991.56682362,0.000182,2]
[390643816,1760110240691,-201.36920788,0.000182,2]
[390643817,1760110240701,-181.14051502,0.000182,2]
[390643819,1760110240713,-2393.89611977,0.00018333,2]
[390643821,1760110240722,-1438.29315449,0.000184,2]
[390643823,1760110240732,-1991.56682362,0.000184,2]
[390643825,1760110240742,-181.14051502,0.000184,2]
[390643827,1760110240751,-500.0,0.00018442,2]
[390643830,1760110240761,-179.565,0.00018453,2]
[390643833,1760110240770,-198.4486038,0.00018497,2]
[390643836,1760110240780,-1438.29315449,0.000185,2]
[390643841,1760110240793,-1991.56682362,0.000185,2]
[390643844,1760110240804,-181.14051502,0.000185,2]
[390643847,1760110240815,-1463.82071191,0.00018529,2]
[390643850,1760110240825,-632.792,0.00018544,2]
[390643852,1760110240835,-1656.0,0.00018583,2]
[390643854,1760110240844,-2454.91574527,0.0001863,7]
[390643857,1760110240872,-10045.08425473,0.0001863,7]
[390643859,1760110240882,-1656.0,0.00018669,2]
[390643861,1760110240892,-151.3695708,0.0001869,2]
[390643863,1760110240903,-151.0,0.0001869,2]
[390643865,1760110240912,-500.0,0.0001869,2]
[390643867,1760110240923,-151.26637059,0.0001869,2]
[390643869,1760110240933,-177.67,0.0001869,2]
[390643871,1760110240943,-2438.657578,0.00018696,2]
[390643873,1760110240953,-173.3658325,0.00018696,2]
[390643875,1760110240963,-1438.29315449,0.000187,2]
[390643877,1760110240974,-1991.56682362,0.000187,2]
[390643879,1760110240984,-2000.0,0.000187,2]
[390643881,1760110240995,-181.14051502,0.000187,2]
[390643883,1760110241005,-614.42148323,0.000187,2]
[390643885,1760110241017,-221197.89655883,0.000187,2]
[390643887,1760110241027,-290.66649419,0.000187,2]
[390643889,1760110241038,-501.80386231,0.00018701,2]
[390643891,1760110241047,-514.06567756,0.00018716,2]
[390643893,1760110241057,-151.0,0.00018745,2]
[390643895,1760110241068,-500.0,0.00018745,2]
[390643897,1760110241078,-1656.0,0.00018746,2]
[390643898,1760110241087,-198.0,0.000188,2]
[390643899,1760110241102,-500.0,0.000188,2]
[390643900,1760110241112,-923.0,0.00018816,2]
[390643901,1760110241122,-798.0,0.00018832,2]
[390643902,1760110241132,-500.0,0.00018854,2]
[390643903,1760110241144,-395865.69007818,0.000189,2]
[390643904,1760110241155,-302.51602579,0.000189,2]
[390643905,1760110241164,-500.0,0.00018909,2]
[390643906,1760110241174,-1656.0,0.00018916,2]
[390643907,1760110241184,-160.0,0.00018944,4]
[390643908,1760110241194,-500.0,0.00018964,2]
[390643909,1760110241203,-198.4486038,0.00018965,2]
[390643910,1760110241212,-1038.07,0.0001898,3]
[390643911,1760110241222,-519.03,0.0001898,3]
[390643912,1760110241231,-259.52,0.0001898,3]
[390643913,1760110241242,-778.56,0.0001898,3]
[390643914,1760110241251,-3909.97118052,0.0001899,5]
[390643915,1760110241262,-15180.0,0.00019,3]
[390643916,1760110241271,-298.03512572,0.00019,3]
[390643917,1760110241281,-160.0,0.00019,2]
[390643918,1760110241292,-500.0,0.00019019,2]
[390643919,1760110241301,-8808.66,0.00019021,2]
[390643920,1760110241311,-91173.45677938,0.00019063,7]
[390643921,1760110241320,-151.0,0.00019063,2]
[390643922,1760110241330,-151.0,0.00019063,2]
[390643923,1760110241340,-151.106908,0.00019063,2]
[390643924,1760110241351,-151.0,0.00019063,2]
[390643925,1760110241361,-262.91856015,0.00019063,2]
[390643927,1760110241370,-152.201984,0.00019063,2]
[390643928,1760110241380,-600.0,0.00019073,2]
[390643930,1760110241389,-500.0,0.00019074,2]
[390643932,1760110241398,-302.51602579,0.00019089,2]
[390643934,1760110241407,-200.0,0.000191,2]
[390643936,1760110241417,-2000.0,0.000191,2]
[390643938,1760110241426,-2000.0,0.000191,2]
[390643940,1760110241435,-2000.0,0.000191,2]
[390643942,1760110241445,-1656.0,0.00019111,2]
[390643944,1760110241454,-500.0,0.00019128,2]
[390643946,1760110241464,-1656.0,0.00019136,2]
[390643948,1760110241473,-5206.0,0.00019151,2]
[390643950,1760110241483,-150.0,0.00019178,2]
[390643952,1760110241492,-300.0,0.00019178,2]
[390643954,1760110241502,-450.0,0.00019178,2]
[390643955,1760110241512,-600.0,0.00019178,2]
[390643958,1760110241522,-750.0,0.00019178,2]
[390643959,1760110241532,-795.80714378,0.00019178,2]
[390643961,1760110241542,-500.0,0.00019178,2]
[390643963,1760110241551,-5000.0,0.00019178,2]
[390643965,1760110241561,-5000.0,0.00019178,2]
[390643968,1760110241570,-151.0,0.00019178,2]
[390643969,1760110241580,-151.0,0.00019178,2]
[390643971,1760110241589,-151.0,0.00019178,2]
[390643974,1760110241602,-226.512693,0.00019178,2]
[390643976,1760110241612,-500.0,0.00019183,2]
[390643978,1760110241622,-179.69451932,0.000192,2]
[390643980,1760110241632,-3080.50744968,0.00019205,5]
[390643981,1760110241641,-500.0,0.0001922,2]
[390643983,1760110241652,-151.0,0.0001922,7]
[390643986,1760110241661,-151.0,0.0001922,7]
[390643987,1760110241671,-151.0,0.0001922,7]
[390643989,1760110241681,-151.0,0.0001922,7]
[390643991,1760110241691,-151.0,0.0001922,7]
[390643993,1760110241700,-195.11221,0.0001922,7]
[390643995,1760110241709,-151.0,0.0001922,7]
[390643997,1760110241719,-151.0,0.0001922,7]
[390644000,1760110241728,-151.0,0.0001922,7]
[390644001,1760110241738,-151.0,0.0001922,7]
[390644003,1760110241747,-151.0,0.0001922,7]
[390644005,1760110241757,-151.0,0.0001922,7]
[390644007,1760110241767,-151.0,0.0001922,7]
[390644009,1760110241777,-151.0,0.0001922,7]
[390644011,1760110241787,-151.0,0.0001922,7]
[390644014,1760110241797,-151.0,0.0001922,7]
[390644015,1760110241806,-151.0,0.0001922,7]
[390644017,1760110241816,-55419.78414988,0.0001922,2]
[390644019,1760110241828,-151.0,0.0001922,7]
[390644021,1760110241840,-151.0,0.0001922,7]
[390644023,1760110241851,-151.0,0.0001922,7]
[390644025,1760110241861,-276.206538,0.0001922,7]
[390644027,1760110241871,-500.0,0.00019233,2]
[390644029,1760110241883,-500.0,0.00019238,2]
[390644031,1760110241892,-302.51602579,0.00019278,2]
[390644033,1760110241902,-206.98348132,0.00019288,2]
[390644035,1760110241912,-500.0,0.00019293,2]
[390644037,1760110241922,-160.0,0.00019296,5]
[390644039,1760110241932,-548.8479744,0.00019301,2]
[390644041,1760110241942,-480.0,0.00019305,2]
[390644043,1760110241952,-1656.0,0.00019315,2]
[390644045,1760110241962,-798.0,0.0001932,2]
[390644047,1760110241972,-798.0,0.00019334,2]
[390644049,1760110241982,-500.0,0.00019348,2]
[390644051,1760110241992,-160.0,0.00019375,2]
[390644054,1760110242002,-500.0,0.00019402,2]
[390644055,1760110242012,-199.92,0.0001941,2]
[390644058,1760110242022,-298.03512572,0.0001941,7]
[390644060,1760110242032,-798.0,0.0001942,2]
[390644061,1760110242042,-198.4486038,0.00019432,2]
[390644064,1760110242053,-420.0,0.00019435,2]
[390644065,1760110242063,-500.0,0.00019457,2]
[390644067,1760110242074,-302.51602579,0.00019467,2]
[390644069,1760110242084,-500.0,0.00019494,2]
[390644071,1760110242095,-3000.0,0.000195,2]
[390644073,1760110242113,-5888.0,0.00019503,2]
[390644076,1760110242124,-200.0,0.0001951,2]
[390644077,1760110242135,-3000.0,0.0001951,2]
[390644080,1760110242147,-500.0,0.00019512,2]
[390644082,1760110242158,-2000.0,0.00019512,2]
[390644084,1760110242171,-3000.0,0.0001952,2]
[390644086,1760110242183,-3000.0,0.0001953,2]
[390644088,1760110242194,-5206.0,0.00019534,2]
[390644090,1760110242205,-3000.0,0.0001954,2]
[390644091,1760110242215,-3000.0,0.0001955,2]
[390644093,1760110242226,-3000.0,0.0001956,2]
[390644095,1760110242236,-798.0,0.00019564,2]
[390644097,1760110242247,-348.0,0.00019567,2]
[390644099,1760110242259,-3000.0,0.0001957,2]
[390644101,1760110242270,-3000.0,0.0001958,2]
[390644103,1760110242281,-3000.0,0.0001959,2]
[390644105,1760110242291,-151.0,0.00019596,7]
[390644107,1760110242301,-151.0,0.00019596,7]
[390644109,1760110242312,-151.0,0.00019596,7]
[390644111,1760110242323,-151.0,0.00019596,7]
[390644113,1760110242332,-179.816372,0.00019596,7]
[390644115,1760110242341,-3000.0,0.000196,2]
[390644117,1760110242356,-3000.0,0.0001961,2]
[390644119,1760110242365,-3000.0,0.0001962,2]
[390644121,1760110242375,-3000.0,0.0001963,2]
[390644123,1760110242389,-3000.0,0.0001964,2]
[390644125,1760110242400,-160.0,0.00019647,6]
[390644127,1760110242410,-3000.0,0.0001965,2]
[390644129,1760110242420,-302.51602579,0.00019656,2]
[390644130,1760110242431,-3000.0,0.0001966,2]
[390644131,1760110242442,-3000.0,0.0001967,2]
[390644132,1760110242454,-798.0,0.00019676,2]
[390644133,1760110242464,-3000.0,0.0001968,2]
[390644134,1760110242475,-3000.0,0.0001969,2]
[390644136,1760110242487,-151.0,0.0001969,7]
[390644137,1760110242499,-151.0,0.0001969,7]
[390644138,1760110242511,-151.0,0.0001969,7]
[390644139,1760110242522,-151.0,0.0001969,7]
[390644140,1760110242533,-151.0,0.0001969,7]
[390644141,1760110242543,-2000.0,0.000197,2]
[390644143,1760110242554,-3000.0,0.000197,2]
[390644145,1760110242565,-1000.0,0.000197,2]
[390644147,1760110242576,-1000.0,0.000197,2]
[390644149,1760110242586,-1000.0,0.000197,2]
[390644150,1760110242596,-1000.0,0.000197,2]
[390644151,1760110242614,-1000.0,0.000197,2]
[390644152,1760110242624,-1000.0,0.000197,2]
[390644154,1760110242635,-1000.0,0.000197,2]
[390644155,1760110242646,-1000.0,0.000197,2]
[390644156,1760110242662,-1000.0,0.000197,2]
[390644157,1760110242672,-397.399678,0.000197,2]
[390644158,1760110242683,-152.642974,0.000197,7]
[390644159,1760110242693,-151.58779,0.000197,7]
[390644160,1760110242704,-151.0,0.000197,7]
[390644161,1760110242714,-151.0,0.000197,7]
[390644162,1760110242724,-151.0,0.000197,7]
[390644163,1760110242734,-151.0,0.000197,7]
[390644164,1760110242744,-151.0,0.000197,7]
[390644165,1760110242757,-151.0,0.000197,7]
[390644166,1760110242767,-151.0,0.000197,7]
[390644167,1760110242777,-151.0,0.000197,7]
[390644168,1760110242788,-151.0,0.000197,7]
[390644169,1760110242803,-151.0,0.000197,7]
[390644170,1760110242813,-3000.0,0.0001971,2]
[390644171,1760110242823,-3000.0,0.0001972,2]
[390644172,1760110242835,-3000.0,0.0001973,2]
[390644173,1760110242846,-3000.0,0.0001974,2]
[390644174,1760110242863,-3000.0,0.0001975,2]
[390644175,1760110242873,-3000.0,0.0001976,2]
[390644176,1760110242884,-798.0,0.00019763,2]
[390644177,1760110242895,-500.0,0.00019768,2]
[390644178,1760110242905,-3000.0,0.0001977,2]
[390644179,1760110242915,-3000.0,0.0001978,2]
[390644180,1760110242925,-3000.0,0.0001979,2]
[390644181,1760110242935,-1002.99339572,0.00019795,2]
[390644183,1760110242944,-3000.0,0.000198,2]
[390644184,1760110242955,-1000.0,0.000198,2]
[390644185,1760110242966,-798.0,0.00019807,2]
[390644186,1760110242976,-3000.0,0.0001981,2]
[390644187,1760110242986,-798.0,0.00019814,2]
[390644188,1760110242996,-3000.0,0.0001982,2]
[390644190,1760110243007,-3000.0,0.0001983,2]
[390644191,1760110243017,-13212.99,0.00019836,2]
[390644192,1760110243028,-152.507168,0.00019836,7]
[390644193,1760110243038,-151.0,0.00019836,7]
[390644195,1760110243048,-160.730606,0.00019836,7]
[390644197,1760110243059,-3000.0,0.0001984,2]
[390644200,1760110243070,-453.77403868,0.00019845,4]
[390644202,1760110243081,-588.2885567,0.00019847,2]
[390644205,1760110243091,-588.2885567,0.00019847,2]
[390644208,1760110243109,-162.8446322,0.00019847,2]
[390644212,1760110243120,-595.4958809,0.00019847,2]
[390644215,1760110243131,-162.8446322,0.00019847,2]
[390644218,1760110243143,-588.2885567,0.00019847,2]
[390644221,1760110243154,-162.8446322,0.00019847,2]
[390644224,1760110243168,-161.9208724,0.00019847,2]
[390644227,1760110243179,-588.2885567,0.00019847,2]
[390644230,1760110243190,-3000.0,0.0001985,2]
[390644233,1760110243201,-3000.0,0.0001986,2]
[390644237,1760110243211,-798.0,0.00019862,2]
[390644241,1760110243222,-3000.0,0.0001987,2]
[390644246,1760110243234,-3000.0,0.0001988,2]
[390644250,1760110243245,-3000.0,0.0001989,2]
[390644254,1760110243255,-151.0,0.0001989,7]
[390644257,1760110243265,-198.4486038,0.00019899,2]
[390644260,1760110243278,-50275.08464286,0.000199,2]
[390644264,1760110243288,-3000.0,0.000199,2]
[390644268,1760110243299,-151.0,0.000199,7]
[390644272,1760110243310,-151.0,0.000199,7]
[390644276,1760110243320,-151.0,0.000199,7]
[390644280,1760110243331,-179.4763,0.000199,7]
[390644284,1760110243342,-151.0,0.000199,7]
[390644288,1760110243357,-151.0,0.000199,7]
[390644292,1760110243368,-151.0,0.000199,7]
[390644294,1760110243379,-159.201531,0.000199,7]
[390644297,1760110243390,-151.0,0.000199,7]
[390644300,1760110243402,-151.0,0.000199,7]
[390644303,1760110243412,-151.0,0.000199,7]
[390644306,1760110243423,-226.510872,0.000199,7]
[390644309,1760110243433,-151.0,0.000199,7]
[390644311,1760110243444,-1015.706381,0.000199,2]
[390644314,1760110243455,-595.89208649,0.00019901,2]
[390644316,1760110243466,-154.21979229,0.00019903,2]
[390644317,1760110243479,-200.0,0.0001991,2]
[390644318,1760110243490,-3000.0,0.0001991,2]
[390644319,1760110243500,-151.0,0.0001991,7]
[390644320,1760110243511,-10000.0,0.0001991,2]
[390644321,1760110243521,-798.0,0.00019913,2]
[390644323,1760110243531,-3000.0,0.0001992,2]
[390644324,1760110243541,-1656.0,0.0001992,2]
[390644325,1760110243552,-260.0,0.00019923,2]
[390644326,1760110243562,-3000.0,0.0001993,2]
[390644327,1760110243572,-3000.0,0.0001994,2]
[390644328,1760110243583,-3000.0,0.0001995,2]
[390644329,1760110243593,-3000.0,0.0001996,2]
[390644330,1760110243609,-3000.0,0.0001997,2]
[390644331,1760110243619,-500.53836085,0.00019973,2]
[390644332,1760110243629,-498.33544719,0.00019973,2]
[390644333,1760110243639,-627.54677909,0.00019973,2]
[390644334,1760110243649,-500.0,0.00019973,2]
[390644335,1760110243659,-500.0,0.00019973,2]
[390644336,1760110243668,-500.0,0.00019973,2]
[390644337,1760110243679,-500.0,0.00019973,2]
[390644338,1760110243689,-505.45386967,0.00019973,2]
[390644339,1760110243699,-500.0,0.00019973,2]
[390644340,1760110243709,-500.0,0.00019973,2]
[390644341,1760110243720,-500.0,0.00019973,2]
[390644342,1760110243730,-500.0,0.00019973,2]
[390644343,1760110243740,-500.0,0.00019973,2]
[390644344,1760110243750,-500.0,0.00019973,2]
[390644345,1760110243760,-500.0,0.00019973,2]
[390644346,1760110243770,-500.0,0.00019973,2]
[390644347,1760110243780,-500.0,0.00019973,2]
[390644348,1760110243794,-165.24160476,0.00019973,2]
[390644349,1760110243805,-500.0,0.00019973,2]
[390644350,1760110243816,-500.0,0.00019973,2]
[390644351,1760110243826,-500.0,0.00019973,2]
[390644352,1760110243839,-500.0,0.00019973,2]
[390644353,1760110243856,-413.60686754,0.00019973,2]
[390644354,1760110243868,-500.0,0.00019973,2]
[390644355,1760110243879,-500.0,0.00019973,2]
[390644356,1760110243890,-500.0,0.00019973,2]
[390644360,1760110244071,-214.21809975,0.00019973,2]
[390644362,1760110244083,-372.71606127,0.00019973,2]
[390644364,1760110244096,-500.0,0.00019973,2]
[390644365,1760110244115,-500.0,0.00019973,2]
[390644366,1760110244126,-500.0,0.00019973,2]
[390644367,1760110244137,-500.0,0.00019973,2]
[390644368,1760110244149,-500.0,0.00019973,2]
[390644369,1760110244160,-500.0,0.00019973,2]
[390644370,1760110244173,-500.0,0.00019973,2]
[390644371,1760110244186,-500.0,0.00019973,2]
[390644372,1760110244202,-500.0,0.00019973,2]
[390644373,1760110244213,-150.0,0.00019973,2]
[390644374,1760110244225,-500.0,0.00019973,2]
[390644375,1760110244237,-500.0,0.00019973,2]
[390644377,1760110244249,-500.0,0.00019973,2]
[390644379,1760110244263,-500.0,0.00019973,2]
[390644381,1760110244275,-151.0,0.00019973,7]
[390644383,1760110244286,-3000.0,0.0001998,2]
[390644385,1760110244298,-3000.0,0.0001999,2]
[390644386,1760110244310,-160.0,0.00019999,7]
[390644388,1760110244322,-200.0,0.00019999,2]
[390644389,1760110244334,-200.0,0.00019999,2]
[390644390,1760110244346,-255.51652127,0.00019999,2]
[390644392,1760110244365,-227.94410409,0.00019999,2]
[390644394,1760110244376,-19611.85645068,0.0002,7]
[390644395,1760110244387,-11052.0,0.0002,2]
[390644397,1760110244399,-500.0,0.0002,2]
[390644399,1760110244411,-160.0,0.0002,7]
[390644401,1760110244423,-243.48025314,0.0002,2]
[390644403,1760110244434,-14520.12149269,0.0002,2]
[390644404,1760110244445,-367.04146539,0.0002,2]
[390644405,1760110244458,-5265.03880784,0.0002,7]
[390644406,1760110244469,-60061.0,0.0002,7]
[390644407,1760110244480,-23000.0,0.0002,2]
[390644408,1760110244492,-84181.79142576,0.0002,2]
[390644409,1760110244503,-320.04361631,0.0002,2]
[390644410,1760110244515,-200.1762577,0.0002,2]
[390644411,1760110244527,-2867.62,0.0002,2]
[390644412,1760110244538,-202.4120291,0.0002,2]
[390644413,1760110244549,-160.0,0.0002,3]
[390644414,1760110244560,-160.0,0.0002,7]
[390644415,1760110244571,-160.0,0.0002,7]
[390644416,1760110244582,-26438.26302573,0.0002,20]
[390644417,1760110244592,-3000.0,0.0002,2]
[390644418,1760110244609,-238.0,0.0002,2]
[390644419,1760110244621,-2000.0,0.0002,14]
[390644420,1760110244632,-2005.73,0.0002,14]
[390644421,1760110244643,-338.02544816,0.0002,2]
[390644422,1760110244654,-298.03512572,0.0002,7]
[390644423,1760110244665,-160.0,0.0002,7]
[390644424,1760110244676,-160.0,0.0002,3]
[390644425,1760110244687,-151.0,0.0002,7]
[390644426,1760110244700,-151.0,0.0002,7]
[390644427,1760110244714,-151.0,0.0002,7]
[390644428,1760110244725,-151.0,0.0002,7]
[390644429,1760110244736,-151.0,0.0002,7]
[390644430,1760110244747,-151.0,0.0002,7]
[390644431,1760110244758,-151.0,0.0002,7]
[390644432,1760110244770,-151.0,0.0002,7]
[390644433,1760110244782,-151.0,0.0002,7]
[390644434,1760110244798,-279.973015,0.0002,7]
[390644435,1760110244810,-151.0,0.0002,7]
[390644436,1760110244824,-151.0,0.0002,7]
[390644437,1760110244837,-151.24291427,0.0002,2]
[390644438,1760110244857,-151.0,0.0002,7]
[390644439,1760110244868,-151.0,0.0002,7]
[390644440,1760110244882,-151.0,0.0002,7]
[390644441,1760110244894,-151.0,0.0002,7]
[390644442,1760110244906,-151.0,0.0002,7]
[390644443,1760110244917,-151.0,0.0002,7]
[390644444,1760110244930,-151.0,0.0002,7]
[390644445,1760110244940,-151.0,0.0002,7]
[390644446,1760110244952,-303.82173209,0.0002,2]
[390644447,1760110244963,-210.106978,0.0002,7]
[390644448,1760110244975,-30243.74131751,0.0002,2]
[390644449,1760110244987,-1000.0,0.0002,4]
[390644450,1760110244998,-157.38,0.00020004,2]
[390644451,1760110245010,-3000.0,0.0002001,2]
[390644452,1760110245022,-3000.0,0.0002002,2]
[390644453,1760110245034,-453.77403868,0.00020034,4]
[390644454,1760110245045,-800.0,0.00020046,2]
[390644455,1760110245056,-798.0,0.00020053,2]
[390644456,1760110245067,-200.0,0.000201,2]
[390644457,1760110245078,-2000.0,0.000201,2]
[390644458,1760110245089,-2000.0,0.000201,2]
[390644459,1760110245104,-2000.0,0.000201,2]
[390644460,1760110245115,-300.0,0.0002011,2]